bitfinex/quotes_BTCUSD_20241103
["timestamp","ask_amount","ask_price","bid_price","bid_amount"]
[1730626417424,1.11323798,68400.0,68399.0,3.6e-07]
[1730626417903,1.12723798,68400.0,68399.0,3.6e-07]
[1730626418567,1.12723723,68400.0,68399.0,3.6e-07]
[1730626419021,1.14902528,68400.0,68399.0,3.6e-07]
[1730626419241,1.28223492,68400.0,68399.0,3.6e-07]
[1730626420129,1.26823492,68400.0,68399.0,3.6e-07]
[1730626420596,1.28223492,68400.0,68399.0,3.6e-07]
[1730626420817,1.26823492,68400.0,68399.0,3.6e-07]
[1730626421048,1.28223492,68400.0,68399.0,3.6e-07]
[1730626421929,1.24682568,68400.0,68399.0,3.6e-07]
[1730626422170,1.28222952,68400.0,68399.0,3.6e-07]
[1730626422392,1.28222886,68400.0,68399.0,3.6e-07]
[1730626423244,1.1515606,68400.0,68399.0,3.6e-07]
[1730626423465,1.1531986,68400.0,68399.0,3.6e-07]
[1730626423800,0.246215,68392.0,68390.0,0.00372983]
[1730626424005,0.9302257,68392.0,68390.0,0.00372983]
[1730626424206,1.01735329,68392.0,68388.0,0.0807]
[1730626424424,0.9302257,68392.0,68390.0,0.00372983]
[1730626424648,0.93022687,68392.0,68390.0,0.00372983]
[1730626425056,1.09560122,68392.0,68390.0,0.00372983]
[1730626425314,1.09699211,68392.0,68388.0,0.0807]
[1730626425512,1.00985601,68392.0,68388.0,0.08442983]
[1730626425716,1.02385601,68392.0,68388.0,0.0807]
[1730626425922,0.97445166,68392.0,68388.0,0.0807]
[1730626426135,1.0098598,68392.0,68388.0,0.08442983]
[1730626426351,1.0378598,68392.0,68388.0,0.08442983]
[1730626426807,1.0238598,68392.0,68388.0,0.08442983]
[1730626427040,1.11876644,68392.0,68388.0,0.08442983]
[1730626427266,1.13276644,68392.0,68388.0,0.08442983]
[1730626427484,1.14538301,68392.0,68388.0,0.0807]
[1730626427695,1.14538301,68392.0,68386.0,0.000827]
[1730626427696,1.0671373,68392.0,68391.0,0.13435683]
[1730626427899,0.95823066,68392.0,68391.0,0.13435683]
[1730626428158,1.00179641,68392.0,68391.0,0.13435683]
[1730626428595,0.97379641,68392.0,68391.0,0.13435683]
[1730626428797,0.98779641,68392.0,68391.0,0.13435683]
[1730626429041,0.98817845,68392.0,68391.0,0.13435683]
[1730626429266,0.98779661,68392.0,68391.0,0.13435683]
[1730626429725,1.14762235,68392.0,68391.0,0.13435683]
[1730626430750,1.00179661,68392.0,68391.0,0.13435683]
[1730626431167,0.93644068,68392.0,68391.0,0.13435683]
[1730626431418,1.00179661,68392.0,68391.0,0.13435683]
[1730626435385,1.02358243,68392.0,68391.0,0.13435683]
[1730626435588,0.93644068,68392.0,68391.0,0.13435683]
[1730626436168,0.93645473,68392.0,68391.0,0.13435683]
[1730626440541,1.08228047,68392.0,68391.0,0.13435683]
[1730626440722,1.08228047,68392.0,68391.0,0.08525683]
[1730626440968,1.16947967,68392.0,68391.0,0.08525683]
[1730626441191,1.02365393,68392.0,68391.0,0.08525683]
[1730626441406,0.93645473,68392.0,68391.0,0.08525683]
[1730626441629,1.02503736,68392.0,68391.0,0.08525683]
[1730626442246,1.02365393,68392.0,68391.0,0.08525683]
[1730626442667,0.93645473,68392.0,68391.0,0.08525683]
[1730626442879,1.08228047,68392.0,68391.0,0.08525683]
[1730626443292,1.16947967,68392.0,68391.0,0.08525683]
[1730626443969,1.12595363,68392.0,68391.0,0.08525683]
[1730626444192,1.12733706,68392.0,68391.0,0.08525683]
[1730626444642,1.12595363,68392.0,68391.0,0.08525683]
[1730626445498,1.12595363,68392.0,68391.0,0.00455683]
[1730626445766,1.11232142,68392.0,68391.0,0.00455683]
[1730626445973,1.12595911,68392.0,68391.0,0.00455683]
[1730626446197,1.1395968,68392.0,68391.0,0.00455683]
[1730626446425,1.24859581,68392.0,68391.0,0.00455683]
[1730626446855,1.1395968,68392.0,68391.0,0.00455683]
[1730626449218,1.1255968,68392.0,68391.0,0.00455683]
[1730626449449,1.12559595,68392.0,68391.0,0.00455683]
[1730626449662,1.13959595,68392.0,68391.0,0.00455683]
[1730626449872,1.12559595,68392.0,68391.0,0.00455683]
[1730626450110,1.13959595,68392.0,68391.0,0.00455683]
[1730626450764,1.12559595,68392.0,68391.0,0.00455683]
[1730626450966,1.13959595,68392.0,68391.0,0.00455683]
[1730626451213,0.99377021,68392.0,68391.0,0.00455683]
[1730626452516,0.97977021,68392.0,68391.0,0.00455683]
[1730626452727,0.99377021,68392.0,68391.0,0.00455683]
[1730626453608,0.97977021,68392.0,68391.0,0.00455683]
[1730626453832,0.99377021,68392.0,68391.0,0.00455683]
[1730626454272,0.97977021,68392.0,68391.0,0.00455683]
[1730626454700,0.98013337,68392.0,68391.0,0.00455683]
[1730626454912,0.99377604,68392.0,68391.0,0.00455683]
[1730626455135,0.98013835,68392.0,68391.0,0.00455683]
[1730626459065,0.93646519,68392.0,68391.0,0.08285683]
[1730626459467,0.93646519,68392.0,68391.0,0.13065683]
[1730626460528,0.92247914,68392.0,68391.0,0.13065683]
[1730626460743,1.03173498,68392.0,68391.0,0.13065683]
[1730626460981,1.04573498,68392.0,68391.0,0.13065683]
[1730626461129,1.05973498,68392.0,68391.0,0.13065683]
[1730626463032,0.95047914,68392.0,68391.0,0.13065683]
[1730626463659,0.85047914,68392.0,68391.0,0.13065683]
[1730626464280,0.85047877,68392.0,68391.0,0.13065683]
[1730626464945,0.85047797,68392.0,68391.0,0.13065683]
[1730626466883,0.9378835,68392.0,68391.0,0.13065683]
[1730626467082,0.98451982,68392.0,68391.0,0.13065683]
[1730626467853,0.93788105,68392.0,68391.0,0.13065683]
[1730626468246,0.8504752,68392.0,68391.0,0.13065683]
[1730626468477,0.8504752,68392.0,68391.0,0.08285683]
[1730626468731,0.8504752,68392.0,68391.0,0.00455683]
[1730626470725,0.89420863,68392.0,68391.0,0.00455683]
[1730626471103,0.94694396,68392.0,68391.0,0.00455683]
[1730626471724,0.89420863,68392.0,68391.0,0.00455683]
[1730626475913,0.99420863,68392.0,68391.0,0.00455683]
[1730626477389,0.98055595,68392.0,68391.0,0.00455683]
[1730626477605,0.99420723,68392.0,68391.0,0.00455683]
[1730626479386,0.98055595,68392.0,68391.0,0.00455683]
[1730626479608,1.14003693,68392.0,68391.0,0.000827]
[1730626479812,1.14003673,68392.0,68391.0,0.000827]
[1730626480012,1.14003673,68392.0,68391.0,0.00455683]
[1730626481255,0.99421099,68392.0,68391.0,0.00455683]
[1730626482472,0.99421099,68392.0,68391.0,0.08305683]
[1730626482697,0.95047756,68392.0,68391.0,0.08305683]
[1730626483142,1.05974307,68392.0,68391.0,0.08305683]
[1730626483372,1.04608803,68392.0,68391.0,0.08305683]
[1730626483600,1.0597437,68392.0,68391.0,0.08305683]
[1730626487194,1.01774444,68392.0,68391.0,0.08305683]
[1730626487633,1.04574444,68392.0,68391.0,0.08305683]
[1730626488811,1.03174444,68392.0,68391.0,0.08305683]
[1730626489242,1.04574444,68392.0,68391.0,0.08305683]
[1730626489661,1.04575382,68392.0,68391.0,0.08305683]
[1730626491074,1.03209741,68392.0,68391.0,0.08305683]
[1730626491313,1.04575602,68392.0,68391.0,0.08305683]
[1730626491542,1.045756,68392.0,68391.0,0.08305683]
[1730626494942,1.04574922,68392.0,68391.0,0.08305683]
[1730626495175,1.03174922,68392.0,68391.0,0.08305683]
[1730626495386,0.92247433,68392.0,68391.0,0.08305683]
[1730626495636,0.93647433,68392.0,68391.0,0.08305683]
[1730626496036,0.90847433,68392.0,68391.0,0.08305683]
[1730626496242,0.92247433,68392.0,68391.0,0.08305683]
[1730626496464,0.93647433,68392.0,68391.0,0.08305683]
[1730626497328,1.04574922,68392.0,68391.0,0.08305683]
[1730626497541,0.93647433,68392.0,68391.0,0.08305683]
[1730626498380,1.04574922,68392.0,68391.0,0.08305683]
[1730626498554,1.04574986,68392.0,68391.0,0.08305683]
[1730626501652,1.04568343,68392.0,68391.0,0.08305683]
[1730626504037,1.04567721,68392.0,68391.0,0.08305683]
[1730626504721,1.04567721,68392.0,68391.0,0.00455683]
[1730626506223,0.98016426,68392.0,68391.0,0.00455683]
[1730626508362,0.98015896,68392.0,68391.0,0.00455683]
[1730626511962,0.98016114,68392.0,68391.0,0.00455683]
[1730626515915,0.96651803,68392.0,68391.0,0.00455683]
[1730626517188,0.92282252,68392.0,68391.0,0.00455683]
[1730626517414,1.03196396,68392.0,68391.0,0.00455683]
[1730626517629,0.92282252,68392.0,68391.0,0.00455683]
[1730626517845,0.96651777,68392.0,68391.0,0.00455683]
[1730626519439,0.92282252,68392.0,68391.0,0.00455683]
[1730626519690,0.96651765,68392.0,68391.0,0.00455683]
[1730626520126,1.03196536,68392.0,68391.0,0.00455683]
[1730626520559,0.96651788,68392.0,68391.0,0.00455683]
[1730626523384,1.11234362,68392.0,68391.0,0.00455683]
[1730626523601,1.16214362,68392.0,68391.0,0.00455683]
[1730626526283,1.01631788,68392.0,68391.0,0.00455683]
[1730626535948,1.01631788,68392.0,68391.0,0.000827]
[1730626536155,1.01631788,68392.0,68391.0,0.00455683]
[1730626539133,1.01131788,68392.0,68391.0,0.00455683]
[1730626539991,1.01131788,68392.0,68391.0,0.000827]
[1730626540205,1.01131788,68392.0,68391.0,0.00455683]
[1730626541932,1.01131788,68392.0,68391.0,0.000827]
[1730626542133,1.01131788,68392.0,68391.0,0.00455683]
[1730626543204,1.01131788,68392.0,68391.0,0.000827]
[1730626543515,1.01131788,68392.0,68391.0,0.00455683]
[1730626544094,1.08738281,68392.0,68391.0,0.00455683]
[1730626546595,1.01131788,68392.0,68391.0,0.000827]
[1730626547267,1.01270131,68392.0,68391.0,0.000827]
[1730626547917,1.01524036,68392.0,68391.0,0.000827]
[1730626548748,1.01270131,68392.0,68391.0,0.000827]
[1730626549233,1.02632646,68392.0,68391.0,0.000827]
[1730626550602,1.30292983,68392.0,68391.0,0.000827]
[1730626553578,1.1721522,68392.0,68391.0,0.000827]
[1730626553794,1.30292645,68392.0,68391.0,0.000827]
[1730626554459,1.1721522,68392.0,68391.0,0.000827]
[1730626555342,1.02632646,68392.0,68391.0,0.00455683]
[1730626555579,0.97652646,68392.0,68391.0,0.00455683]
[1730626556239,0.97652646,68392.0,68391.0,0.000827]
[1730626556734,0.97514303,68392.0,68391.0,0.000827]
[1730626557365,0.96151788,68392.0,68391.0,0.000827]
[1730626557773,1.15644362,68392.0,68391.0,0.000827]
[1730626557975,1.28721787,68392.0,68391.0,0.000827]
[1730626558612,1.28723301,68392.0,68391.0,1e-06]
[1730626559486,1.30086131,68392.0,68391.0,1e-06]
[1730626559937,1.30249931,68392.0,68391.0,1e-06]
[1730626560640,1.30388274,68392.0,68391.0,1e-06]
[1730626560863,1.30388279,68392.0,68391.0,1e-06]
[1730626561920,1.02726766,68392.0,68391.0,1e-06]
[1730626562350,1.02588423,68392.0,68391.0,1e-06]
[1730626563279,1.15805466,68392.0,68391.0,1e-06]
[1730626563694,1.02726766,68392.0,68391.0,1e-06]
[1730626567011,1.01363931,68392.0,68391.0,1e-06]
[1730626567229,1.17309447,68392.0,68391.0,1e-06]
[1730626568869,0.97678253,68392.0,68391.0,1e-06]
[1730626569326,1.10762026,68392.0,68391.0,1e-06]
[1730626569553,1.09537704,68392.0,68391.0,1e-06]
[1730626570010,0.96315588,68392.0,68391.0,1e-06]
[1730626574936,1.09404903,68392.0,68391.0,1e-06]
[1730626575156,1.23987477,68392.0,68391.0,1e-06]
[1730626575379,1.10898162,68392.0,68391.0,1e-06]
[1730626575878,0.94915588,68392.0,68391.0,1e-06]
[1730626576309,0.96315588,68392.0,68391.0,1e-06]
[1730626576769,0.93515588,68392.0,68391.0,1e-06]
[1730626576952,0.94915588,68392.0,68391.0,1e-06]
[1730626577406,0.96315588,68392.0,68391.0,1e-06]
[1730626577861,0.94915588,68392.0,68391.0,1e-06]
[1730626578283,0.93515588,68392.0,68391.0,1e-06]
[1730626578719,0.96315588,68392.0,68391.0,1e-06]
[1730626578924,0.94915588,68392.0,68391.0,1e-06]
[1730626579135,0.93515588,68392.0,68391.0,1e-06]
[1730626579388,0.96315588,68392.0,68391.0,1e-06]
[1730626584813,0.96315588,68392.0,68391.0,1e-06]
[1730626588726,0.91946052,68392.0,68391.0,1e-06]
[1730626591374,0.96313674,68392.0,68391.0,1e-06]
[1730626591816,0.96313674,68392.0,68391.0,0.00373083]
[1730626594229,0.97677149,68392.0,68391.0,0.00373083]
[1730626595150,0.96313674,68392.0,68391.0,0.00373083]
[1730626597093,0.96313674,68392.0,68391.0,1e-06]
[1730626597094,1.10896248,68392.0,68391.0,1e-06]
[1730626597307,1.12259399,68392.0,68391.0,1e-06]
[1730626597748,0.97676825,68392.0,68391.0,1e-06]
[1730626598389,1.05227069,68392.0,68391.0,1e-06]
[1730626599792,1.09787069,68392.0,68391.0,1e-06]
[1730626600020,1.09925412,68392.0,68391.0,1e-06]
[1730626600696,1.08562261,68392.0,68391.0,1e-06]
[1730626600964,1.0992538,68392.0,68391.0,1e-06]
[1730626601182,1.24507954,68392.0,68391.0,1e-06]
[1730626603766,1.23144835,68392.0,68391.0,1e-06]
[1730626603986,1.24508221,68392.0,68391.0,1e-06]
[1730626610928,1.24508235,68392.0,68391.0,1e-06]
[1730626611360,1.25871652,68392.0,68391.0,1e-06]
[1730626611572,1.24508252,68392.0,68391.0,1e-06]
[1730626618308,1.24508189,68392.0,68391.0,1e-06]
[1730626618553,0.22311187,68387.0,68386.0,1e-06]
[1730626618772,1.20584708,68387.0,68386.0,1e-06]
[1730626618996,1.07492914,68387.0,68386.0,1e-06]
[1730626619442,1.20583823,68387.0,68386.0,1e-06]
[1730626619656,1.21983823,68387.0,68386.0,1e-06]
[1730626619877,1.26348581,68387.0,68386.0,1e-06]
[1730626620113,1.27748402,68387.0,68386.0,1e-06]
[1730626620954,1.14657493,68387.0,68386.0,1e-06]
[1730626621644,1.14657663,68387.0,68386.0,1e-06]
[1730626621882,1.10067663,68387.0,68386.0,1e-06]
[1730626622825,1.08704319,68387.0,68386.0,1e-06]
[1730626623053,0.14761643,68384.0,68383.0,1e-06]
[1730626623270,1.05140371,68384.0,68383.0,1e-06]
[1730626624651,1.05140148,68384.0,68383.0,1e-06]
[1730626625362,1.05393305,68384.0,68383.0,1e-06]
[1730626625586,1.18933549,68384.0,68383.0,1e-06]
[1730626625835,1.11130148,68384.0,68383.0,1e-06]
[1730626626068,1.12530148,68384.0,68383.0,1e-06]
[1730626626553,1.11130148,68384.0,68383.0,1e-06]
[1730626626776,1.12530148,68384.0,68383.0,1e-06]
[1730626627206,1.11130148,68384.0,68383.0,1e-06]
[1730626628323,1.0976743,68384.0,68383.0,1e-06]
[1730626628526,1.12529285,68384.0,68383.0,1e-06]
[1730626632075,1.12529285,68384.0,68372.0,0.00372983]
[1730626632076,0.22313087,68378.0,68377.0,0.00641376]
[1730626632295,1.01368429,68378.0,68377.0,0.00641376]
[1730626632806,1.01230086,68378.0,68377.0,0.00641376]
[1730626633023,1.05597708,68378.0,68377.0,0.00641376]
[1730626633700,1.08397708,68378.0,68377.0,0.00641376]
[1730626634360,1.08536051,68378.0,68377.0,0.00641376]
[1730626636643,0.146254,68374.0,68373.0,0.00372983]
[1730626636862,0.93024581,68374.0,68373.0,0.00372983]
[1730626637502,0.93024581,68374.0,68371.0,0.0782]
[1730626637503,0.246258,68372.0,68371.0,0.0782]
[1730626637714,0.90848407,68372.0,68371.0,0.0782]
[1730626637933,0.90848407,68372.0,68371.0,0.08192983]
[1730626638357,0.9302483,68372.0,68371.0,0.0782]
[1730626638568,0.97376816,68372.0,68371.0,0.0782]
[1730626639274,0.97515158,68372.0,68371.0,0.0782]
[1730626639502,0.98913517,68372.0,68371.0,0.0782]
[1730626639734,1.00313517,68372.0,68371.0,0.0782]
[1730626640172,1.10544106,68372.0,68371.0,0.0782]
[1730626640448,0.9378514,68372.0,68371.0,0.0782]
[1730626640658,0.9378514,68372.0,68371.0,0.08192983]
[1730626640878,0.24764343,68371.0,68370.0,0.00372983]
[1730626641136,0.40704292,68371.0,68370.0,0.00372983]
[1730626641346,0.45056189,68371.0,68370.0,0.00372983]
[1730626641582,0.45056189,68371.0,68367.0,0.0806]
[1730626641583,0.146267,68368.0,68367.0,0.0806]
[1730626641806,0.90847697,68368.0,68367.0,0.08432983]
[1730626642027,0.90847697,68368.0,68362.0,0.0806]
[1730626642028,0.146277,68363.0,68362.0,0.0806]
[1730626642276,0.90848697,68363.0,68362.0,0.0806]
[1730626643160,0.90848508,68363.0,68362.0,0.0806]
[1730626643394,0.90848508,68363.0,68359.0,0.000827]
[1730626643395,0.1,68362.0,68359.0,0.000827]
[1730626643634,0.146284,68360.0,68359.0,0.000827]
[1730626643884,0.80849055,68360.0,68359.0,0.000827]
[1730626644096,0.95431629,68360.0,68359.0,0.000827]
[1730626645044,1.05431629,68360.0,68359.0,0.000827]
[1730626645929,1.08231629,68360.0,68359.0,0.00455683]
[1730626646362,1.0975774,68360.0,68359.0,0.00455683]
[1730626646577,1.0975774,68360.0,68359.0,0.000827]
[1730626646995,1.0975773,68360.0,68359.0,0.00455683]
[1730626647462,1.31660177,68360.0,68359.0,0.000827]
[1730626647692,1.14108902,68360.0,68359.0,0.000827]
[1730626648164,1.0975773,68360.0,68359.0,0.000827]
[1730626648584,1.1193291,68360.0,68359.0,0.000827]
[1730626649011,1.12186089,68360.0,68359.0,0.000827]
[1730626649225,1.07251016,68360.0,68359.0,0.000827]
[1730626649441,1.06997837,68360.0,68359.0,0.000827]
[1730626649649,1.11344063,68360.0,68359.0,0.000827]
[1730626649859,1.12744063,68360.0,68359.0,0.000827]
[1730626650065,1.08397837,68360.0,68359.0,0.000827]
[1730626650274,1.14918663,68360.0,68359.0,0.000827]
[1730626650524,1.15057006,68360.0,68359.0,0.000827]
[1730626650734,1.0853618,68360.0,68359.0,0.000827]
[1730626651141,1.10711975,68360.0,68359.0,0.000827]
[1730626651387,1.12071847,68360.0,68359.0,0.000827]
[1730626651606,1.16416108,68360.0,68359.0,0.000827]
[1730626651879,1.0853618,68360.0,68359.0,0.000827]
[1730626652515,1.12880441,68360.0,68359.0,0.000827]
[1730626652726,1.0853618,68360.0,68359.0,0.000827]
[1730626654744,0.14767843,68355.0,68354.0,0.00372983]
[1730626654973,0.54030943,68349.0,68348.0,0.00372983]
[1730626655185,1.18891695,68349.0,68348.0,0.00372983]
[1730626655397,1.18891695,68349.0,68345.0,0.0776]
[1730626655398,0.146314,68346.0,68345.0,0.08132983]
[1730626655621,0.81666928,68346.0,68345.0,0.08132983]
[1730626655825,0.83026163,68346.0,68345.0,0.08132983]
[1730626657528,0.82292152,68346.0,68345.0,0.08132983]
[1730626657738,0.85824666,68346.0,68345.0,0.08132983]
[1730626657968,0.85824666,68346.0,68345.0,0.12692983]
[1730626658223,0.71244962,68346.0,68345.0,0.12692983]
[1730626658452,0.69071107,68346.0,68345.0,0.12692983]
[1730626660185,0.67671107,68346.0,68345.0,0.12692983]
[1730626660624,0.67671107,68346.0,68345.0,0.1275464]
[1730626660625,0.69071107,68346.0,68345.0,0.1275464]
[1730626660871,0.67671107,68346.0,68345.0,0.1275464]
[1730626661357,0.67671247,68346.0,68345.0,0.1275464]
[1730626662478,0.69071247,68346.0,68345.0,0.1275464]
[1730626663591,0.69071247,68346.0,68345.0,0.1325464]
[1730626664042,0.69071247,68346.0,68345.0,0.13192983]
[1730626664926,0.69071247,68346.0,68345.0,0.1325464]
[1730626665812,0.69071247,68346.0,68345.0,0.13192983]
[1730626666305,0.69071247,68346.0,68345.0,0.13274883]
[1730626668317,0.69072317,68346.0,68345.0,0.13274883]
[1730626671881,0.81831939,68346.0,68345.0,0.00454883]
[1730626672352,0.69072317,68346.0,68345.0,0.00454883]
[1730626673260,0.88332021,68346.0,68345.0,0.000819]
[1730626673473,1.05882265,68346.0,68345.0,0.000819]
[1730626673681,0.246318,68344.0,68343.0,0.0089032]
[1730626673898,1.13476527,68344.0,68343.0,0.0089032]
[1730626674137,1.15633545,68344.0,68343.0,0.0089032]
[1730626674357,1.19991508,68344.0,68343.0,0.0089032]
[1730626674596,1.04769442,68344.0,68343.0,0.0089032]
[1730626674821,1.19490359,68344.0,68343.0,0.0089032]
[1730626675027,1.31754462,68344.0,68343.0,0.0089032]
[1730626675240,1.53656909,68344.0,68343.0,2e-07]
[1730626675497,0.24770343,68343.0,68342.0,2e-07]
[1730626675719,1.19328153,68343.0,68342.0,2e-07]
[1730626676575,1.23536046,68343.0,68342.0,2e-07]
[1730626676777,1.34399022,68343.0,68342.0,2e-07]
[1730626676997,1.35925133,68343.0,68342.0,2e-07]
[1730626677217,1.37325133,68343.0,68342.0,2e-07]
[1730626677444,1.3858679,68343.0,68342.0,2e-07]
[1730626677739,1.13302915,68343.0,68342.0,2e-07]
[1730626677956,1.21991964,68343.0,68342.0,2e-07]
[1730626678584,1.13302915,68343.0,68342.0,2e-07]
[1730626679031,1.0454243,68343.0,68342.0,2e-07]
[1730626679218,0.99385351,68343.0,68342.0,2e-07]
[1730626679455,1.13967925,68343.0,68342.0,2e-07]
[1730626680486,1.12567925,68343.0,68342.0,2e-07]
[1730626680708,1.13967925,68343.0,68342.0,2e-07]
[1730626680930,1.36700045,68343.0,68342.0,2e-07]
[1730626681393,1.38100045,68343.0,68342.0,2e-07]
[1730626681610,1.38102836,68343.0,68342.0,2e-07]
[1730626681836,1.23515047,68343.0,68342.0,2e-07]
[1730626682056,1.07302554,68343.0,68342.0,2e-07]
[1730626682469,1.00785323,68343.0,68342.0,2e-07]
[1730626683163,1.05130227,68343.0,68342.0,2e-07]
[1730626683832,1.00785323,68343.0,68342.0,2e-07]
[1730626684467,1.15367897,68343.0,68342.0,2e-07]
[1730626684665,1.19712801,68343.0,68342.0,2e-07]
[1730626685088,0.246325,68341.0,68340.0,0.00250689]
[1730626685313,1.18758252,68341.0,68340.0,0.00250689]
[1730626685496,1.20116564,68341.0,68340.0,0.00250689]
[1730626685995,1.34699138,68341.0,68340.0,0.00250689]
[1730626686434,1.22916564,68341.0,68340.0,0.00250689]
[1730626687056,0.246327,68340.0,68339.0,0.00250689]
[1730626687288,0.146337,68335.0,68334.0,0.07803925]
[1730626687515,0.90852764,68335.0,68334.0,0.07803925]
[1730626688392,0.76219064,68335.0,68333.0,0.000827]
[1730626688619,0.30572016,68334.0,68333.0,0.000827]
[1730626689069,0.80853064,68334.0,68333.0,0.000827]
[1730626689508,0.146352,68328.0,68327.0,0.33542824]
[1730626689696,0.6627456,68328.0,68327.0,0.33542824]
[1730626690385,0.6627456,68328.0,68327.0,0.41812824]
[1730626691877,0.6627456,68328.0,68327.0,0.36862824]
[1730626692279,0.6907456,68328.0,68327.0,0.36862824]
[1730626692730,0.67716248,68328.0,68327.0,0.36862824]
[1730626693425,0.67716248,68328.0,68327.0,0.36924481]
[1730626694929,0.67716248,68328.0,68327.0,0.41684481]
[1730626695570,0.53081048,68328.0,68327.0,0.42684481]
[1730626696622,0.67716248,68328.0,68327.0,0.42684481]
[1730626700561,0.67716248,68328.0,68327.0,0.42766381]
[1730626704784,0.66316248,68328.0,68327.0,0.42766381]
[1730626705189,0.67716248,68328.0,68327.0,0.42766381]
[1730626705394,0.66316248,68328.0,68327.0,0.42766381]
[1730626705600,0.64916248,68328.0,68327.0,0.42766381]
[1730626705780,0.66316248,68328.0,68327.0,0.42766381]
[1730626706383,0.67716248,68328.0,68327.0,0.42766381]
[1730626710584,0.67716248,68328.0,68327.0,0.41766381]
[1730626710798,0.67716248,68328.0,68327.0,0.37006381]
[1730626713879,0.67880048,68328.0,68327.0,0.37006381]
[1730626714302,0.82459752,68328.0,68327.0,0.36944724]
[1730626714526,0.82459752,68328.0,68327.0,0.28674724]
[1730626718513,0.86819403,68328.0,68327.0,0.28674724]
[1730626720570,0.92459752,68328.0,68327.0,0.28674724]
[1730626720773,0.98999229,68328.0,68327.0,0.28674724]
[1730626720978,1.06565138,68328.0,68327.0,0.28674724]
[1730626721394,0.92459752,68328.0,68327.0,0.28674724]
[1730626721603,1.29861162,68328.0,68327.0,0.28674724]
[1730626722255,1.21135137,68328.0,68327.0,0.28674724]
[1730626722678,1.29861162,68328.0,68327.0,0.28674724]
[1730626723460,1.21135137,68328.0,68327.0,0.28674724]
[1730626724525,1.07042326,68328.0,68327.0,0.28674724]
[1730626726590,1.13584014,68328.0,68327.0,0.28674724]
[1730626728130,0.9900144,68328.0,68327.0,0.28674724]
[1730626728424,0.96820774,68328.0,68327.0,0.28674724]
[1730626728635,0.92459752,68328.0,68327.0,0.28674724]
[1730626732008,0.96820875,68328.0,68327.0,0.28674724]
[1730626733099,0.82459752,68328.0,68327.0,0.28674724]
[1730626734227,1.01403449,68328.0,68327.0,0.28674724]
[1730626735304,1.02766303,68328.0,68327.0,0.28674724]
[1730626735727,1.04129157,68328.0,68327.0,0.28674724]
[1730626735927,0.89546583,68328.0,68327.0,0.28674724]
[1730626738749,0.88183729,68328.0,68327.0,0.28674724]
[1730626738884,0.89546704,68328.0,68327.0,0.28674724]
[1730626740319,0.89546704,68328.0,68327.0,0.28736381]
[1730626740874,0.85185581,68328.0,68327.0,0.28736381]
[1730626741326,0.85185775,68328.0,68327.0,0.33596381]
[1730626742182,0.83822921,68328.0,68327.0,0.33596381]
[1730626744696,0.69243217,68328.0,68327.0,0.33596381]
[1730626745368,0.67880048,68328.0,68327.0,0.33596381]
[1730626745583,0.69243597,68328.0,68327.0,0.33596381]
[1730626748420,0.69243597,68328.0,68327.0,0.41646625]
[1730626748599,0.69243204,68328.0,68327.0,0.41646625]
[1730626748801,0.69243204,68328.0,68327.0,0.33596381]
[1730626749249,0.69243204,68328.0,68327.0,0.41146625]
[1730626750228,0.66443204,68328.0,68327.0,0.41146625]
[1730626750542,0.67843204,68328.0,68327.0,0.41146625]
[1730626750685,0.69243204,68328.0,68327.0,0.41146625]
[1730626750885,0.69243204,68328.0,68327.0,0.33596381]
[1730626751089,0.71424009,68328.0,68327.0,0.33596381]
[1730626752312,0.69242988,68328.0,68327.0,0.33596381]
[1730626752936,0.69242988,68328.0,68327.0,0.28736381]
[1730626753323,0.88183815,68328.0,68327.0,0.28674724]
[1730626753481,0.83822692,68328.0,68327.0,0.28674724]
[1730626753944,0.9036438,68328.0,68327.0,0.28674724]
[1730626755997,0.90364349,68328.0,68327.0,0.28674724]
[1730626756875,1.1115314,68328.0,68327.0,0.28674724]
[1730626757095,0.9711298,68328.0,68327.0,0.28674724]
[1730626757314,1.11152721,68328.0,68327.0,0.28674724]
[1730626758134,1.09752721,68328.0,68327.0,0.28674724]
[1730626758351,1.08352561,68328.0,68327.0,0.28674724]
[1730626758562,1.24335135,68328.0,68327.0,0.28674724]
[1730626758782,1.50439827,68328.0,68327.0,0.28674724]
[1730626759005,1.35314794,68328.0,68327.0,0.28674724]
[1730626759210,1.39680649,68328.0,68327.0,0.28674724]
[1730626759416,1.25098075,68328.0,68327.0,0.28674724]
[1730626759631,1.22298075,68328.0,68327.0,0.28674724]
[1730626759828,1.22297642,68328.0,68327.0,0.28674724]
[1730626760031,1.25097642,68328.0,68327.0,0.28674724]
[1730626760246,1.16797642,68328.0,68327.0,0.28674724]
[1730626760682,1.27014361,68328.0,68327.0,0.28674724]
[1730626760907,1.12431787,68328.0,68327.0,0.28674724]
[1730626761118,1.07861787,68328.0,68327.0,0.28674724]
[1730626761365,1.06461787,68328.0,68327.0,0.28674724]
[1730626761820,1.07861787,68328.0,68327.0,0.28674724]
[1730626762733,1.18758649,68328.0,68327.0,0.28674724]
[1730626762931,1.18758649,68328.0,68327.0,0.33294724]
[1730626762932,0.67842342,68328.0,68327.0,0.33294724]
[1730626763161,0.67842342,68328.0,68327.0,0.33356381]
[1730626763619,0.67880048,68328.0,68327.0,0.33356381]
[1730626763846,0.67880048,68328.0,68327.0,0.28674724]
[1730626764068,0.66480048,68328.0,68327.0,0.28674724]
[1730626764284,0.67880048,68328.0,68327.0,0.28674724]
[1730626764499,0.65080048,68328.0,68327.0,0.28674724]
[1730626764832,0.67880048,68328.0,68327.0,0.28674724]
[1730626765039,0.66480048,68328.0,68327.0,0.28674724]
[1730626765236,0.67841668,68328.0,68327.0,0.28674724]
[1730626766109,0.66441668,68328.0,68327.0,0.28736381]
[1730626766240,0.67841668,68328.0,68327.0,0.28674724]
[1730626766480,1.02762543,68328.0,68327.0,0.28674724]
[1730626766688,1.01362543,68328.0,68327.0,0.28674724]
[1730626766944,1.02762509,68328.0,68327.0,0.28674724]
[1730626767374,1.02762422,68328.0,68327.0,0.28674724]
[1730626767585,0.83821285,68328.0,68327.0,0.28674724]
[1730626770331,1.14151529,68328.0,68327.0,0.14039224]
[1730626770555,1.32596352,68328.0,68327.0,0.14039224]
[1730626770751,1.37087664,68328.0,68327.0,0.14039224]
[1730626770959,1.14151529,68328.0,68327.0,0.14039224]
[1730626771160,1.38803142,68328.0,68327.0,0.14039224]
[1730626771417,1.40164531,68328.0,68327.0,0.14039224]
[1730626771628,1.41564531,68328.0,68327.0,0.14039224]
[1730626771744,1.34014287,68328.0,68327.0,0.14039224]
[1730626771957,1.32614287,68328.0,68327.0,0.14039224]
[1730626772154,1.31252898,68328.0,68327.0,0.14039224]
[1730626772496,1.32652898,68328.0,68327.0,0.14039224]
[1730626772674,1.34052898,68328.0,68327.0,0.14039224]
[1730626772848,1.32652898,68328.0,68327.0,0.14039224]
[1730626773063,1.34052898,68328.0,68327.0,0.14039224]
[1730626773643,1.44942072,68328.0,68327.0,0.14039224]